{"text_format":"3","workbook":"xlsx","n_sheets":2,"sheets":["ALOITUS","HENKILÖKOHT. KUUKAUSIBUDJETTI"],"read":"whole","date_system":"1900"}

{"sheet":"ALOITUS","index":0,"n_rows":7,"n_cols":2,"rows_kept":7}
[null,"TIETOJA TÄSTÄ MALLISTA"]
[null,"Voit tämän Henkilökohtainen kuukausittainen budjetti -laskentataulukon avulla seurata suunniteltuja ja todellisia kuukausittaisia tulojasi sekä suunniteltuja ja todellisia kustannuksiasi."]
[null,"Kirjoita aiheutuneet kulut eri luokkiin kyseisissä taulukoissa."]
[null,"Suunniteltu saldo, todellinen saldo ja erotus lasketaan automaattisesti."]
[null,"Muistiinpano: "]
[null,"Lisäohjeita on annettu HENKILÖKOHTAINEN KUUKAUSITTAINEN BUDJETTI -laskentataulukon sarakkeessa A. Tämä teksti on piilotettu tarkoituksella. Jos haluat poistaa tekstiä, valitse sarake A ja valitse sitten POISTA. Jos haluat tuoda tekstin näkyviin, valitse sarake A ja muuta sitten fonttiväriä."]
[null,"Jos haluat lisätietoja laskentataulukossa olevista taulukoista, paina VAIHTO ja sitten F10 taulukossa, valitse TAULUKKO-vaihtoehto ja valitse sitten VAIHTOEHTOINEN TEKSTI."]

{"sheet":"HENKILÖKOHT. KUUKAUSIBUDJETTI","index":1,"n_rows":64,"n_cols":10,"rows_kept":64,"merged":[[3,1,5,1],[3,2,3,3],[3,6,4,8],[3,9,4,9],[4,2,4,3],[5,2,5,3],[5,6,6,8],[5,9,6,9],[7,1,9,1],[7,2,7,3],[7,6,8,8],[7,9,8,9],[8,2,8,3],[9,2,9,3],[22,6,22,9],[23,1,23,4],[31,6,31,9],[33,1,33,4],[38,6,38,9],[40,1,40,4],[44,6,44,9],[46,1,46,4],[50,6,50,9],[54,1,54,4],[57,6,57,9],[58,6,59,8],[58,9,59,9],[60,6,61,8],[60,9,61,9],[62,6,63,8],[62,9,63,9],[64,1,64,4]]}
["Luo henkilökohtainen kuukausittainen budjetti tässä laskentataulukossa. Tämän sarakkeen soluissa on hyödyllisiä ohjeita tämän laskentataulukon käytöstä. Aloita siirtymällä nuolella alaspäin."]
["Tämän laskentataulun otsikko on oikealla olevassa solussa. Seuraava ohje on solussa A4.","HENKILÖKOHTAINEN KUUKAUSITTAINEN BUDJETTI"]
[]
["Suunnitellut kuukausittaiset tulot -nimike on oikealla olevassa solussa. Kirjoita tulot 1 soluun E4 ja lisätulot soluun E5 kuukausittaiset kokonaistulot laskemiseksi solussa E6. Seuraava ohje on solussa A6.","SUUNNITELLUT KUUKAUSITTAISET TULOT","Tulot 1",null,{"v":4300,"d":"4,300.00 €"},null,"SUUNNITELTU SALDO \n(suunnitellut tulot vähennettyinä kuluilla)",null,null,{"$f":"E6-J59","v":{"v":3405,"d":"3,405.00 €"}}]
[null,null,"Lisätulot",null,{"v":300,"d":"300.00 €"}]
["Suunniteltu saldo lasketaan automaattisesti solussa J4, todellinen saldo solussa J6 ja erotus solussa J8. Seuraava ohje on solussa A8.",null,"Kuukausittaiset kokonaistulot",null,{"$f":"SUM(E4:E5)","v":{"v":4600,"d":"4,600.00 €"}},null,"TODELLINEN SALDO \n(todelliset tulot vähennettyinä kuluilla)",null,null,{"$f":"E10-J61","v":{"v":3064,"d":"3,064.00 €"}}]
[]
["Todelliset kuukausittaiset tulot -nimike on oikealla olevassa solussa. Kirjoita tulot 1 soluun E8 ja lisätulot soluun E9 kuukausittaiset kokonaistulot laskemiseksi solussa E10. Seuraava ohje on solussa A12.","TODELLISET KUUKAUSITTAISET TULOT","Tulot 1",null,{"v":4000,"d":"4,000.00 €"},null,"EROTUS \n(todelliset tulot vähennettyinä suunnitellulla tuloilla)",null,null,{"$f":"J6-J4","v":{"v":-341,"d":"-341.00 €"}}]
[null,null,"Lisätulot",null,{"v":300,"d":"300.00 €"}]
[null,null,"Kuukausittaiset kokonaistulot",null,{"$f":"SUM(E8:E9)","v":{"v":4300,"d":"4,300.00 €"}}]
[]
["Kirjoita tiedot Asuminen-taulukkoon oikealla olevasta solusta alkaen ja Vapaa-aika-taulukkoon solusta G12 alkaen. Seuraava ohje on solussa A25.","ASUMINEN","Suunnitellut kustannukset","Todelliset kustannukset","Erotus",null,"VAPAA-AIKA","Suunnitellut kustannukset","Todelliset kustannukset","Erotus"]
[null,"Asuntolaina tai vuokra",{"v":1000,"d":"1,000.00 €"},{"v":1000,"d":"1,000.00 €"},{"$f":"Asuminen[[#This Row],[Suunnitellut kustannukset]]-Asuminen[[#This Row],[Todelliset kustannukset]]","v":{"v":0,"d":"0.00 €"}},null,"Videot/DVD-levyt",null,null,{"$f":"Vapaa_aika[[#This Row],[Suunnitellut kustannukset]]-Vapaa_aika[[#This Row],[Todelliset kustannukset]]","v":{"v":0,"d":"0.00 €"}}]
[null,"Puhelin",{"v":54,"d":"54.00 €"},{"v":100,"d":"100.00 €"},{"$f":"Asuminen[[#This Row],[Suunnitellut kustannukset]]-Asuminen[[#This Row],[Todelliset kustannukset]]","v":{"v":-46,"d":"-46.00 €"}},null,"CD-levyt",null,null,{"$f":"Vapaa_aika[[#This Row],[Suunnitellut kustannukset]]-Vapaa_aika[[#This Row],[Todelliset kustannukset]]","v":{"v":0,"d":"0.00 €"}}]
[null,"Sähkö",{"v":44,"d":"44.00 €"},{"v":56,"d":"56.00 €"},{"$f":"Asuminen[[#This Row],[Suunnitellut kustannukset]]-Asuminen[[#This Row],[Todelliset kustannukset]]","v":{"v":-12,"d":"-12.00 €"}},null,"Elokuvat",null,null,{"$f":"Vapaa_aika[[#This Row],[Suunnitellut kustannukset]]-Vapaa_aika[[#This Row],[Todelliset kustannukset]]","v":{"v":0,"d":"0.00 €"}}]
[null,"Lämmitys",{"v":22,"d":"22.00 €"},{"v":28,"d":"28.00 €"},{"$f":"Asuminen[[#This Row],[Suunnitellut kustannukset]]-Asuminen[[#This Row],[Todelliset kustannukset]]","v":{"v":-6,"d":"-6.00 €"}},null,"Konsertit",null,null,{"$f":"Vapaa_aika[[#This Row],[Suunnitellut kustannukset]]-Vapaa_aika[[#This Row],[Todelliset kustannukset]]","v":{"v":0,"d":"0.00 €"}}]
[null,"Vesi ja viemäröinti",{"v":8,"d":"8.00 €"},{"v":8,"d":"8.00 €"},{"$f":"Asuminen[[#This Row],[Suunnitellut kustannukset]]-Asuminen[[#This Row],[Todelliset kustannukset]]","v":{"v":0,"d":"0.00 €"}},null,"Urheilutapahtumat",null,null,{"$f":"Vapaa_aika[[#This Row],[Suunnitellut kustannukset]]-Vapaa_aika[[#This Row],[Todelliset kustannukset]]","v":{"v":0,"d":"0.00 €"}}]
[null,"Kaapeli",{"v":34,"d":"34.00 €"},{"v":34,"d":"34.00 €"},{"$f":"Asuminen[[#This Row],[Suunnitellut kustannukset]]-Asuminen[[#This Row],[Todelliset kustannukset]]","v":{"v":0,"d":"0.00 €"}},null,"Teatteri",null,null,{"$f":"Vapaa_aika[[#This Row],[Suunnitellut kustannukset]]-Vapaa_aika[[#This Row],[Todelliset kustannukset]]","v":{"v":0,"d":"0.00 €"}}]
[null,"Roskahuolto",{"v":10,"d":"10.00 €"},{"v":10,"d":"10.00 €"},{"$f":"Asuminen[[#This Row],[Suunnitellut kustannukset]]-Asuminen[[#This Row],[Todelliset kustannukset]]","v":{"v":0,"d":"0.00 €"}},null,"Muut",null,null,{"$f":"Vapaa_aika[[#This Row],[Suunnitellut kustannukset]]-Vapaa_aika[[#This Row],[Todelliset kustannukset]]","v":{"v":0,"d":"0.00 €"}}]
[null,"Huolto tai korjaukset",{"v":23,"d":"23.00 €"},{"v":0,"d":"0.00 €"},{"$f":"Asuminen[[#This Row],[Suunnitellut kustannukset]]-Asuminen[[#This Row],[Todelliset kustannukset]]","v":{"v":23,"d":"23.00 €"}},null,"Muut",null,null,{"$f":"Vapaa_aika[[#This Row],[Suunnitellut kustannukset]]-Vapaa_aika[[#This Row],[Todelliset kustannukset]]","v":{"v":0,"d":"0.00 €"}}]
[null,"Tarvikkeet",{"v":0,"d":"0.00 €"},{"v":0,"d":"0.00 €"},{"$f":"Asuminen[[#This Row],[Suunnitellut kustannukset]]-Asuminen[[#This Row],[Todelliset kustannukset]]","v":{"v":0,"d":"0.00 €"}},null,"Muut",null,null,{"$f":"Vapaa_aika[[#This Row],[Suunnitellut kustannukset]]-Vapaa_aika[[#This Row],[Todelliset kustannukset]]","v":{"v":0,"d":"0.00 €"}}]
[null,"Muut",{"v":0,"d":"0.00 €"},{"v":0,"d":"0.00 €"},{"$f":"Asuminen[[#This Row],[Suunnitellut kustannukset]]-Asuminen[[#This Row],[Todelliset kustannukset]]","v":{"v":0,"d":"0.00 €"}},null,"Välisumma",null,null,{"$f":"SUBTOTAL(109,Vapaa_aika[Erotus])","v":{"v":0,"d":"0.00 €"}}]
[null,"Välisumma",null,null,{"$f":"SUBTOTAL(109,Asuminen[Erotus])","v":{"v":-41,"d":"-41.00 €"}}]
[{"$nulls":6},"LAINAT","Suunnitellut kustannukset","Todelliset kustannukset","Erotus"]
["Kirjoita tiedot Matkat-taulukkoon oikealla olevasta solusta alkaen ja Lainat-taulukkoon solusta G24 alkaen. Seuraava ohje on solussa A35.","MATKAT","Suunnitellut kustannukset","Todelliset kustannukset","Erotus",null,"Henkilökohtainen",null,null,{"$f":"Lainat[[#This Row],[Suunnitellut kustannukset]]-Lainat[[#This Row],[Todelliset kustannukset]]","v":{"v":0,"d":"0.00 €"}}]
[null,"Ajoneuvomaksu",null,null,{"$f":"Matkat[[#This Row],[Suunnitellut kustannukset]]-Matkat[[#This Row],[Todelliset kustannukset]]","v":{"v":0,"d":"0.00 €"}},null,"Opiskelija",null,null,{"$f":"Lainat[[#This Row],[Suunnitellut kustannukset]]-Lainat[[#This Row],[Todelliset kustannukset]]","v":{"v":0,"d":"0.00 €"}}]
[null,"Linja-auto-/taksimaksu",null,null,{"$f":"Matkat[[#This Row],[Suunnitellut kustannukset]]-Matkat[[#This Row],[Todelliset kustannukset]]","v":{"v":0,"d":"0.00 €"}},null,"Luottokortti",null,null,{"$f":"Lainat[[#This Row],[Suunnitellut kustannukset]]-Lainat[[#This Row],[Todelliset kustannukset]]","v":{"v":0,"d":"0.00 €"}}]
[null,"Vakuutukset",null,null,{"$f":"Matkat[[#This Row],[Suunnitellut kustannukset]]-Matkat[[#This Row],[Todelliset kustannukset]]","v":{"v":0,"d":"0.00 €"}},null,"Luottokortti",null,null,{"$f":"Lainat[[#This Row],[Suunnitellut kustannukset]]-Lainat[[#This Row],[Todelliset kustannukset]]","v":{"v":0,"d":"0.00 €"}}]
[null,"Käyttöoikeudet",null,null,{"$f":"Matkat[[#This Row],[Suunnitellut kustannukset]]-Matkat[[#This Row],[Todelliset kustannukset]]","v":{"v":0,"d":"0.00 €"}},null,"Luottokortti",null,null,{"$f":"Lainat[[#This Row],[Suunnitellut kustannukset]]-Lainat[[#This Row],[Todelliset kustannukset]]","v":{"v":0,"d":"0.00 €"}}]
[null,"Polttoaine",null,null,{"$f":"Matkat[[#This Row],[Suunnitellut kustannukset]]-Matkat[[#This Row],[Todelliset kustannukset]]","v":{"v":0,"d":"0.00 €"}},null,"Muut",null,null,{"$f":"Lainat[[#This Row],[Suunnitellut kustannukset]]-Lainat[[#This Row],[Todelliset kustannukset]]","v":{"v":0,"d":"0.00 €"}}]
[null,"Ylläpito",null,null,{"$f":"Matkat[[#This Row],[Suunnitellut kustannukset]]-Matkat[[#This Row],[Todelliset kustannukset]]","v":{"v":0,"d":"0.00 €"}},null,"Välisumma",null,null,{"$f":"SUBTOTAL(109,Lainat[Erotus])","v":{"v":0,"d":"0.00 €"}}]
[null,"Muut",null,null,{"$f":"Matkat[[#This Row],[Suunnitellut kustannukset]]-Matkat[[#This Row],[Todelliset kustannukset]]","v":{"v":0,"d":"0.00 €"}}]
[null,"Välisumma",null,null,{"$f":"SUBTOTAL(109,Matkat[Erotus])","v":{"v":0,"d":"0.00 €"}},null,"VEROT","Suunnitellut kustannukset","Todelliset kustannukset","Erotus"]
[{"$nulls":6},"Liittovaltio",null,null,{"$f":"Verot[[#This Row],[Suunnitellut kustannukset]]-Verot[[#This Row],[Todelliset kustannukset]]","v":{"v":0,"d":"0.00 €"}}]
["Kirjoita tiedot Vakuutukset-taulukkoon oikealla olevasta solusta alkaen ja Verot-taulukkoon solusta G33 alkaen. Seuraava ohje on solussa A42.","VAKUUTUKSET","Suunnitellut kustannukset","Todelliset kustannukset","Erotus",null,"Osavaltio",null,null,{"$f":"Verot[[#This Row],[Suunnitellut kustannukset]]-Verot[[#This Row],[Todelliset kustannukset]]","v":{"v":0,"d":"0.00 €"}}]
[null,"Koti",null,null,{"$f":"Vakuutukset[[#This Row],[Suunnitellut kustannukset]]-Vakuutukset[[#This Row],[Todelliset kustannukset]]","v":{"v":0,"d":"0.00 €"}},null,"Paikallinen",null,null,{"$f":"Verot[[#This Row],[Suunnitellut kustannukset]]-Verot[[#This Row],[Todelliset kustannukset]]","v":{"v":0,"d":"0.00 €"}}]
[null,"Terveys",null,null,{"$f":"Vakuutukset[[#This Row],[Suunnitellut kustannukset]]-Vakuutukset[[#This Row],[Todelliset kustannukset]]","v":{"v":0,"d":"0.00 €"}},null,"Muut",null,null,{"$f":"Verot[[#This Row],[Suunnitellut kustannukset]]-Verot[[#This Row],[Todelliset kustannukset]]","v":{"v":0,"d":"0.00 €"}}]
[null,"Elämä",null,null,{"$f":"Vakuutukset[[#This Row],[Suunnitellut kustannukset]]-Vakuutukset[[#This Row],[Todelliset kustannukset]]","v":{"v":0,"d":"0.00 €"}},null,"Välisumma",null,null,{"$f":"SUBTOTAL(109,Verot[Erotus])","v":{"v":0,"d":"0.00 €"}}]
[null,"Muut",null,null,{"$f":"Vakuutukset[[#This Row],[Suunnitellut kustannukset]]-Vakuutukset[[#This Row],[Todelliset kustannukset]]","v":{"v":0,"d":"0.00 €"}}]
[null,"Välisumma",null,null,{"$f":"SUBTOTAL(109,Vakuutukset[Erotus])","v":{"v":0,"d":"0.00 €"}},null,"SÄÄSTÖT TAI SIJOITUKSET","Suunnitellut kustannukset","Todelliset kustannukset","Erotus"]
[{"$nulls":6},"Eläketili",null,null,{"$f":"Säästöt[[#This Row],[Suunnitellut kustannukset]]-Säästöt[[#This Row],[Todelliset kustannukset]]","v":{"v":0,"d":"0.00 €"}}]
["Kirjoita tiedot Ruoka-taulukkoon oikealla olevasta solusta alkaen ja Säästöt-taulukkoon solusta G40 alkaen. Seuraava ohje on solussa A48.","RUOKA","Suunnitellut kustannukset","Todelliset kustannukset","Erotus",null,"Sijoitustili",null,null,{"$f":"Säästöt[[#This Row],[Suunnitellut kustannukset]]-Säästöt[[#This Row],[Todelliset kustannukset]]","v":{"v":0,"d":"0.00 €"}}]
[null,"Ruokatarvikkeet",null,null,{"$f":"Ruoka[[#This Row],[Suunnitellut kustannukset]]-Ruoka[[#This Row],[Todelliset kustannukset]]","v":{"v":0,"d":"0.00 €"}},null,"Muut",null,null,{"$f":"Säästöt[[#This Row],[Suunnitellut kustannukset]]-Säästöt[[#This Row],[Todelliset kustannukset]]","v":{"v":0,"d":"0.00 €"}}]
[null,"Ruokailu ulkona",null,null,{"$f":"Ruoka[[#This Row],[Suunnitellut kustannukset]]-Ruoka[[#This Row],[Todelliset kustannukset]]","v":{"v":0,"d":"0.00 €"}},null,"Välisumma",null,null,{"$f":"SUBTOTAL(109,Säästöt[Erotus])","v":{"v":0,"d":"0.00 €"}}]
[null,"Muut",null,null,{"$f":"Ruoka[[#This Row],[Suunnitellut kustannukset]]-Ruoka[[#This Row],[Todelliset kustannukset]]","v":{"v":0,"d":"0.00 €"}}]
[null,"Välisumma",null,null,{"$f":"SUBTOTAL(109,Ruoka[Erotus])","v":{"v":0,"d":"0.00 €"}},null,"LAHJAT JA LAHJOITUKSET","Suunnitellut kustannukset","Todelliset kustannukset","Erotus"]
[{"$nulls":6},"Lahjoitukset 1",null,null,{"$f":"Lahjat[[#This Row],[Suunnitellut kustannukset]]-Lahjat[[#This Row],[Todelliset kustannukset]]","v":{"v":0,"d":"0.00 €"}}]
["Kirjoita tiedot Lemmikkieläimet-taulukkoon oikealla olevasta solusta alkaen ja Lahjat-taulukkoon solusta G46 alkaen. Seuraava ohje on solussa A56.","LEMMIKKIELÄIMET","Suunnitellut kustannukset","Todelliset kustannukset","Erotus",null,"Lahjoitukset 2",null,null,{"$f":"Lahjat[[#This Row],[Suunnitellut kustannukset]]-Lahjat[[#This Row],[Todelliset kustannukset]]","v":{"v":0,"d":"0.00 €"}}]
[null,"Ruoka",null,null,{"$f":"Lemmikkieläimet[[#This Row],[Suunnitellut kustannukset]]-Lemmikkieläimet[[#This Row],[Todelliset kustannukset]]","v":{"v":0,"d":"0.00 €"}},null,"Lahjoitukset 3",null,null,{"$f":"Lahjat[[#This Row],[Suunnitellut kustannukset]]-Lahjat[[#This Row],[Todelliset kustannukset]]","v":{"v":0,"d":"0.00 €"}}]
[null,"Terveydenhoito",null,null,{"$f":"Lemmikkieläimet[[#This Row],[Suunnitellut kustannukset]]-Lemmikkieläimet[[#This Row],[Todelliset kustannukset]]","v":{"v":0,"d":"0.00 €"}},null,"Välisumma",null,null,{"$f":"SUBTOTAL(109,Lahjat[Erotus])","v":{"v":0,"d":"0.00 €"}}]
[null,"Trimmaus",null,null,{"$f":"Lemmikkieläimet[[#This Row],[Suunnitellut kustannukset]]-Lemmikkieläimet[[#This Row],[Todelliset kustannukset]]","v":{"v":0,"d":"0.00 €"}}]
[null,"Lelut",null,null,{"$f":"Lemmikkieläimet[[#This Row],[Suunnitellut kustannukset]]-Lemmikkieläimet[[#This Row],[Todelliset kustannukset]]","v":{"v":0,"d":"0.00 €"}},null,"LAKIASIAT","Suunnitellut kustannukset","Todelliset kustannukset","Erotus"]
[null,"Muut",null,null,{"$f":"Lemmikkieläimet[[#This Row],[Suunnitellut kustannukset]]-Lemmikkieläimet[[#This Row],[Todelliset kustannukset]]","v":{"v":0,"d":"0.00 €"}},null,"Asianajaja",null,null,{"$f":"Lakiasiat[[#This Row],[Suunnitellut kustannukset]]-Lakiasiat[[#This Row],[Todelliset kustannukset]]","v":{"v":0,"d":"0.00 €"}}]
[null,"Välisumma",null,null,{"$f":"SUBTOTAL(109,Lemmikkieläimet[Erotus])","v":{"v":0,"d":"0.00 €"}},null,"Elatusapu",null,null,{"$f":"Lakiasiat[[#This Row],[Suunnitellut kustannukset]]-Lakiasiat[[#This Row],[Todelliset kustannukset]]","v":{"v":0,"d":"0.00 €"}}]
[{"$nulls":6},"Pantti- tai sakkomaksut",null,null,{"$f":"Lakiasiat[[#This Row],[Suunnitellut kustannukset]]-Lakiasiat[[#This Row],[Todelliset kustannukset]]","v":{"v":0,"d":"0.00 €"}}]
["Kirjoita tiedot Hyvinvointi-taulukkoon oikealla olevasta solusta alkaen ja Lakiasiat-taulukkoon solusta G52 alkaen. Seuraava ohje on solussa A59.","HYVINVOINTI","Suunnitellut kustannukset","Todelliset kustannukset","Erotus",null,"Muut",null,null,{"$f":"Lakiasiat[[#This Row],[Suunnitellut kustannukset]]-Lakiasiat[[#This Row],[Todelliset kustannukset]]","v":{"v":0,"d":"0.00 €"}}]
[null,"Terveydenhoito",null,null,{"$f":"Hyvinvointi[[#This Row],[Suunnitellut kustannukset]]-Hyvinvointi[[#This Row],[Todelliset kustannukset]]","v":{"v":0,"d":"0.00 €"}},null,"Välisumma",null,null,{"$f":"SUBTOTAL(109,Lakiasiat[Erotus])","v":{"v":0,"d":"0.00 €"}}]
[null,"Kampaamo/kynnet",null,null,{"$f":"Hyvinvointi[[#This Row],[Suunnitellut kustannukset]]-Hyvinvointi[[#This Row],[Todelliset kustannukset]]","v":{"v":0,"d":"0.00 €"}}]
["Suunnitellut kokonaiskustannukset lasketaan automaattisesti solussa J59, todelliset kokonaiskustannukset solussa J61 ja kokonaiserotus solussa J63.","Vaatteet",null,null,{"$f":"Hyvinvointi[[#This Row],[Suunnitellut kustannukset]]-Hyvinvointi[[#This Row],[Todelliset kustannukset]]","v":{"v":0,"d":"0.00 €"}},null,"SUUNNITELLUT KOKONAISKUSTANNUKSET",null,null,{"$f":"SUBTOTAL(109,Asuminen[Suunnitellut kustannukset],Matkat[Suunnitellut kustannukset],Vakuutukset[Suunnitellut kustannukset],Ruoka[Suunnitellut kustannukset],Lemmikkieläimet[Suunnitellut kustannukset],Hyvinvointi[Suunnitellut kustannukset],Vapaa_aika[Suunnitellut kustannukset],Lainat[Suunnitellut kustannukset],Verot[Suunnitellut kustannukset],Säästöt[Suunnitellut kustannukset],Lahjat[Suunnitellut kustannukset],Lakiasiat[Suunnitellut kustannukset])","v":{"v":1195,"d":"1,195.00 €"}}]
[null,"Pesula",null,null,{"$f":"Hyvinvointi[[#This Row],[Suunnitellut kustannukset]]-Hyvinvointi[[#This Row],[Todelliset kustannukset]]","v":{"v":0,"d":"0.00 €"}}]
[null,"Kuntokeskus",null,null,{"$f":"Hyvinvointi[[#This Row],[Suunnitellut kustannukset]]-Hyvinvointi[[#This Row],[Todelliset kustannukset]]","v":{"v":0,"d":"0.00 €"}},null,"TODELLISET KOKONAISKUSTANNUKSET",null,null,{"$f":"SUBTOTAL(109,Asuminen[Todelliset kustannukset],Matkat[Todelliset kustannukset],Vakuutukset[Todelliset kustannukset],Ruoka[Todelliset kustannukset],Lemmikkieläimet[Todelliset kustannukset],Hyvinvointi[Todelliset kustannukset],Vapaa_aika[Todelliset kustannukset],Lainat[Todelliset kustannukset],Verot[Todelliset kustannukset],Säästöt[Todelliset kustannukset],Lahjat[Todelliset kustannukset],Lakiasiat[Todelliset kustannukset])","v":{"v":1236,"d":"1,236.00 €"}}]
[null,"Järjestöjen laskut tai jäsenmaksut",null,null,{"$f":"Hyvinvointi[[#This Row],[Suunnitellut kustannukset]]-Hyvinvointi[[#This Row],[Todelliset kustannukset]]","v":{"v":0,"d":"0.00 €"}}]
[null,"Muut",null,null,{"$f":"Hyvinvointi[[#This Row],[Suunnitellut kustannukset]]-Hyvinvointi[[#This Row],[Todelliset kustannukset]]","v":{"v":0,"d":"0.00 €"}},null,"KOKONAISEROTUS",null,null,{"$f":"J59-J61","v":{"v":-41,"d":"-41.00 €"}}]
[null,"Välisumma",null,null,{"$f":"SUBTOTAL(109,Hyvinvointi[Erotus])","v":{"v":0,"d":"0.00 €"}}]